Workbook

Sheet Mestaruussarja
B1: Kalevi Pirttinen | E1: 30.5.1953
B2: MESTARUUSSARJA | E2: Runkosarja | I2: Kärkilyönnit (KL), pesänvälit | P2: Ylempi loppusarja | W2: Alempi loppusarja | AD2: Arvo-ottelut | AH2: Mitalit
B3: Vuosi | C3: Sija | D3: Seura | E3: OTT | F3: KUN | G3: LÖI | H3: TOI | I3: KL | J3: 0 > 1 | K3: 1 > 2 | L3: 2 > 3 | M3: 3 > k | N3: KL-% | P3: OTT | Q3: KUN | R3: LÖI | S3: TOI | T3: KL | U3: KL-% | W3: OTT | X3: KUN | Y3: LÖI | Z3: TOI | AA3: KL | AB3: KL-% | AD3: IL | AE3: LL | AF3: Cup | AG3: K | AH3: H | AI3: P
B4: 1980 | C4: 8. | D4: IPV | E4: 1 | F4: 0 | G4: 1 | H4: 1 | I4: 1 | J4: 0 | K4: 0 | L4: 0 | M4: 1 | N4: 25.0 %
B5: 1981
B6: 1982 | C6: 11. | D6: IPV 2 | F6: ykkössarja
B7: 1983 | C7: 8. | D7: IPV 2 | F7: suomensarja
B8: 1984
B9: 1985
B10: 1986 | C10: 5. | D10: IPV 2 | F10: suomensarja
B11: 1987
B12: 1988
B13: 1989
B14: 1990
B15: 1991
B16: 1992 | C16: 11. | D16: IPV 2 | F16: suomensarja
B17: Yhteensä | E17: 1 | F17: 0 | G17: 1 | H17: 1 | I17: 1 | J17: 0 | K17: 0 | L17: 0 | M17: 1 | N17: 25.0 % | P17: 0 | Q17: 0 | R17: 0 | S17: 0 | T17: 0 | U17: 0.0 % | W17: 0 | X17: 0 | Y17: 0 | Z17: 0 | AA17: 0 | AB17: 0.0 % | AD17: 0 | AE17: 0 | AF17: 0 | AG17: 0 | AH17: 0 | AI17: 0
B18: Pesispörssi | D18: 2.3
B20: URA SM-SARJASSA | E20: OTT | F20: KUN | G20: LÖI | H20: TOI | I20: KL | K20: ka/L | L20: ka/T | M20: ka/KL | N20: KL-% | P20: ENSIMMÄISET RUNKOSARJASSA
B21: Runkosarja | E21: 1 | F21: 0 | G21: 1 | H21: 1 | I21: 1 | K21: 1.00 | L21: 1.00 | M21: 1.00 | N21: 25.0 % | P21: Ottelu | R21: 11.06. 1980 Tahko - IPV 14-6 | Y21: 1. ottelu | AA21: 27 v 0 kk 12 pv
B22: Ylempi loppusarja | P22: Lyöty | R22: 11.06. 1980 Tahko - IPV 14-6 | Y22: 1. ottelu | AA22: 27 v 0 kk 12 pv
B23: Alempi loppusarja | P23: Tuotu | R23: 11.06. 1980 Tahko - IPV 14-6 | Y23: 1. ottelu | AA23: 27 v 0 kk 12 pv
B24: KAIKKI | E24: 1 | F24: 0 | G24: 1 | H24: 1 | I24: 1 | K24: 1.00 | L24: 1.00 | M24: 1.00 | N24: 25.0 % | P24: Kunnari
B26: Seurat | D26: IPV = Imatran Pallo-Veikot (1955)

Sheet MYP, MSS
B1: Kalevi Pirttinen | E1: 30.5.1953
B2: YKKÖSPESIS | E2: Runkosarja | L2: Runkosarja TOP-10 | Q2: Jatkosarjat | X2: SUOMENSARJA | AA2: Runkosarja | AH2: Runkosarja TOP-10 | AM2: Jatkosarjat
B3: Vuosi | C3: Sija | D3: Seura | E3: OTT | F3: KUN | G3: LÖI | H3: TOI | I3: KL | J3: KL-% | L3: LÖI | M3: TOI | N3: L+T | O3: KL | Q3: OTT | R3: KUN | S3: LÖI | T3: TOI | U3: KL | V3: KL-% | X3: Vuosi | Y3: Sija | Z3: Seura | AA3: OTT | AB3: KUN | AC3: LÖI | AD3: TOI | AE3: KL | AF3: KL-% | AH3: LÖI | AI3: TOI | AJ3: L+T | AK3: KL | AM3: OTT | AN3: KUN | AO3: LÖI | AP3: TOI | AQ3: KL | AR3: KL-%
B4: 1982 | C4: 11. | D4: IPV 2 | E4: 9 | F4: 0 | G4: 2 | H4: 0 | Q4: 9 | R4: 2 | S4: 8 | T4: 5
X5: 1983 | Y5: 8. | Z5: IPV 2 | AA5: 18 | AB5: 0 | AC5: 13 | AD5: 12
X7: 1986 | Y7: 5. | Z7: IPV 2 | AA7: 1 | AB7: 0 | AC7: 0 | AD7: 0
X9: 1992 | Y9: 11. | Z9: IPV 2 | AA9: 3 | AB9: 0 | AC9: 2 | AD9: 1
B10: YHTEENSÄ | E10: =SUM(E4:E9) -> 9 | F10: =SUM(F4:F9) -> 0 | G10: =SUM(G4:G9) -> 2 | H10: =SUM(H4:H9) -> 0 | I10: =SUM(I4:I9) -> 0 | J10: 0.0 % | K10: =SUM(K4:K9) -> 0 | Q10: =SUM(Q4:Q9) -> 9 | R10: =SUM(R4:R9) -> 2 | S10: =SUM(S4:S9) -> 8 | T10: =SUM(T4:T9) -> 5 | U10: =SUM(U4:U9) -> 0 | V10: 0.0 % | W10: =SUM(W4:W9) -> 0 | X10: YHTEENSÄ | AA10: =SUM(AA4:AA9) -> 22 | AB10: =SUM(AB4:AB9) -> 0 | AC10: =SUM(AC4:AC9) -> 15 | AD10: =SUM(AD4:AD9) -> 13 | AE10: =SUM(AE4:AE9) -> 0 | AF10: 0.0 % | AG10: =SUM(AG4:AG9) -> 0 | AM10: =SUM(AM4:AM9) -> 0 | AN10: =SUM(AN4:AN9) -> 0 | AO10: =SUM(AO4:AO9) -> 0 | AP10: =SUM(AP4:AP9) -> 0 | AQ10: =SUM(AQ4:AQ9) -> 0 | AR10: 0.0 % | AS10: =SUM(AS4:AS9) -> 0
B12: KAIKKI OTTELUT | E12: OTT | F12: KUN | G12: LÖI | H12: TOI | I12: KL | J12: KL-% | L12: ka/L | M12: ka/T | N12: ka/l+t | O12: ka/kl | R12: Seurat | T12: IPV = Imatran Pallo-Veikot (1955)
B13: SUPERPESIS | E13: 1 | F13: 0 | G13: 1 | H13: 1 | I13: 1 | J13: 25.0 % | K13: =PRODUCT(I13/J13) -> 4 | L13: 0.00 | M13: 0.00 | N13: 0.00 | O13: 0.00
B14: YKKÖSPESIS | E14: =PRODUCT(E10+Q10) -> 18 | F14: =PRODUCT(F10+R10) -> 2 | G14: =PRODUCT(G10+S10) -> 10 | H14: =PRODUCT(H10+T10) -> 5 | I14: =PRODUCT(I10+U10) -> 0 | J14: 0.0 % | K14: =PRODUCT(K10+W10) -> 0 | L14: =PRODUCT((F14+G14)/E14) -> 0.67 | M14: =PRODUCT(H14/E14) -> 0.28 | N14: =PRODUCT((F14+G14+H14)/E14) -> 0.94 | O14: =PRODUCT(I14/E14) -> 0.00
B15: SUOMENSARJA | E15: =PRODUCT(AA10+AM10) -> 22 | F15: =PRODUCT(AB10+AN10) -> 0 | G15: =PRODUCT(AC10+AO10) -> 15 | H15: =PRODUCT(AD10+AP10) -> 13 | I15: =PRODUCT(AE10+AQ10) -> 0 | J15: 0.0 % | K15: =PRODUCT(AG10+AS10) -> 0 | L15: =PRODUCT((F15+G15)/E15) -> 0.68 | M15: =PRODUCT(H15/E15) -> 0.59 | N15: =PRODUCT((F15+G15+H15)/E15) -> 1.27 | O15: =PRODUCT(I15/E15) -> 0.00
B16: YHTEENSÄ | E16: =SUM(E13:E15) -> 41 | F16: =SUM(F13:F15) -> 2 | G16: 26 | H16: 19 | I16: 1 | J16: 0.0 % | K16: =SUM(K13:K15) -> 4 | L16: =PRODUCT((F16+G16)/E16) -> 0.68 | M16: =PRODUCT(H16/E16) -> 0.46 | N16: =PRODUCT((F16+G16+H16)/E16) -> 1.15 | O16: =PRODUCT(I16/E16) -> 0.02
